[Event "EYTCC U12 Girls 2019"]
[Site "Pardubice"]
[Date "2019.07.11"]
[Round "1.24"]
[White "Alagoz, Zumra Meryem"]
[Black "Goriachkina, Oksana"]
[Result "1-0"]
[ECO "B22"]
[WhiteElo "1310"]
[BlackElo "1417"]
[Annotator "NA"]
[PlyCount "149"]
[EventDate "2019.07.11"]
[EventType "swiss"]
[EventCountry "CZE"]
[SourceTitle "playchess.com"]
[Source "ChessBase"]
[SourceQuality "1"]
[WhiteTeam "Turkey"]
[BlackTeam "Russia"]
[WhiteTeamCountry "TUR"]
[BlackTeamCountry "RUS"]
[TimeControl "40/5400+30:1800+30"]

1. e4 {[%emt 0:00:00]} c5 {[%emt 0:00:00]} 2. c3 {[%emt 0:00:00]} d5 {[%emt 0:00:00]} 3. exd5 {[%emt 0:00:00]} Qxd5 {[%emt 0:00:00]} 4. d4 {[%emt 0:00:00]} Nf6 {[%emt 0:00:07]} 5. Nf3 {[%emt 0:00:05]} Bg4 {[%emt 0:00:28]} 6. Be2 {[%emt 0:00:28]} e6 {[%emt 0:00:38]} 7. h3 {[%emt 0:00:30]} Bh5 {[%emt 0:01:24]} 8. O-O {[%emt 0:02:39]} Nc6 {[%emt 0:00:35]} 9. Be3 {[%emt 0:01:08]} cxd4 {[%emt 0:02:39]} 10. Nxd4 {[%emt 0:04:33]} Bxe2 {[%emt 0:01:30]} 11. Qxe2 {[%emt 0:00:50]} Nxd4 {[%emt 0:05:29]} 12. Bxd4 {[%emt 0:00:13]} Be7 {[%emt 0:00:36]} 13. Rd1 {[%emt 0:05:51]} Qc6 {[%emt 0:04:24]} 14. Nd2 {[%emt 0:03:42]} O-O {[%emt 0:01:01]} 15. Nf3 {[%emt 0:04:09]} Nd7 {[%emt 0:15:28]} 16. Rd2 {[%emt 0:10:26]} Bc5 {[%emt 0:15:37]} 17. Bxc5 {[%emt 0:01:40]} Nxc5 {[%emt 0:00:11]} 18. Rad1 {[%emt 0:01:52]} Qc7 {[%emt 0:06:53]} 19. Qe5 {[%emt 0:17:36]} Qxe5 {[%emt 0:04:27]} 20. Nxe5 {[%emt 0:00:17]} Na4 {[%emt 0:12:14]} 21. Rd4 {[%emt 0:06:05]} b5 {[%emt 0:02:01]} 22. R1d2 {[%emt 0:09:47]} a5 {[%emt 0:06:52]} 23. Nd7 {[%emt 0:02:28]} Rfe8 {[%emt 0:00:14]} 24. Rd6 {[%emt 0:02:31]} h6 {[%emt 0:03:04]} 25. Nb6 {[%emt 0:01:17]} Nxb6 {[%emt 0:00:29]} 26. Rxb6 {[%emt 0:00:06]} Rab8 {[%emt 0:00:14]} 27. Ra6 {[%emt 0:05:48]} Ra8 {[%emt 0:00:56]} 28. Rdd6 {[%emt 0:02:45]} Reb8 {[%emt 0:01:19]} 29. Rdb6 {[%emt 0:01:47]} b4 {[%emt 0:01:38]} 30. Rxb8+ {[%emt 0:03:51]} Rxb8 {[%emt 0:00:06]} 31. Rxa5 {[%emt 0:02:09]} bxc3 {[%emt 0:00:49]} 32. bxc3 {[%emt 0:00:05]} Rb1+ {[%emt 0:01:40]} 33. Kh2 {[%emt 0:00:07]} Rc1 {[%emt 0:00:15]} 34. Ra3 {[%emt 0:00:54]} Kf8 {[%emt 0:00:35]} 35. Kg3 {[%emt 0:00:13]} Ke7 {[%emt 0:00:16]} 36. Rb3 {[%emt 0:01:04]} Kd6 {[%emt 0:01:55]} 37. a4 {[%emt 0:02:10]} g6 {[%emt 0:05:12]} 38. Ra3 {[%emt 0:00:32]} Rb1 {[%emt 0:00:26]} 39. a5 {[%emt 0:00:36]} Rb7 {[%emt 0:00:23]} 40. Kf4 {[%emt 0:00:42]} f6 {[%emt 0:00:14]} 41. a6 {[%emt 0:31:38]} Ra7 {[%emt 0:30:09]} 42. Ke4 {[%emt 0:00:17]} Kc5 {[%emt 0:00:33]} 43. Kd3 {[%emt 0:01:11]} Rd7+ {[%emt 0:01:18]} 44. Ke4 {[%emt 0:00:21]} Ra7 {[%emt 0:00:07]} 45. f4 {[%emt 0:02:06]} Kb6 {[%emt 0:01:38]} 46. Kd4 {[%emt 0:00:24]} Rd7+ {[%emt 0:00:24]} 47. Kc4 {[%emt 0:00:25]} Rc7+ {[%emt 0:00:12]} 48. Kb4 {[%emt 0:00:19]} Ra7 {[%emt 0:00:46]} 49. c4 {[%emt 0:00:51]} h5 {[%emt 0:01:21]} 50. c5+ {[%emt 0:01:18]} Kc6 {[%emt 0:01:58]} 51. Kc4 {[%emt 0:00:08]} e5 {[%emt 0:01:16]} 52. fxe5 {[%emt 0:00:08]} fxe5 {[%emt 0:00:08]} 53. Rg3 {[%emt 0:01:33]} Rg7 {[%emt 0:00:41]} 54. Rd3 {[%emt 0:01:03]} g5 {[%emt 0:02:36]} 55. Rd6+ {[%emt 0:00:14]} Kc7 {[%emt 0:00:11]} 56. Re6 {[%emt 0:00:42]} Rg8 {[%emt 0:00:21]} 57. Rxe5 {[%emt 0:00:10]} Kd7 {[%emt 0:00:40]} 58. a7 {[%emt 0:00:21]} Ra8 {[%emt 0:00:09]} 59. Rxg5 {[%emt 0:00:04]} h4 {[%emt 0:00:26]} 60. Kd5 {[%emt 0:00:18]} Ke7 {[%emt 0:01:50]} 61. Rg7+ {[%emt 0:00:07]} Kf6 {[%emt 0:00:29]} 62. Rb7 {[%emt 0:00:16]} Rd8+ {[%emt 0:00:20]} 63. Kc6 {[%emt 0:00:10]} Rc8+ {[%emt 0:00:13]} 64. Kb6 {[%emt 0:00:08]} Re8 {[%emt 0:00:38]} 65. Rb8 {[%emt 0:00:11]} Re6+ {[%emt 0:00:10]} 66. c6 {[%emt 0:00:03]} Re2 {[%emt 0:00:08]} 67. a8=Q {[%emt 0:00:19]} Rb2+ {[%emt 0:00:09]} 68. Kc7 {[%emt 0:00:06]} Rxg2 {[%emt 0:00:11]} 69. Rf8+ {[%emt 0:00:12]} Ke5 {[%emt 0:00:39]} 70. Qa5+ {[%emt 0:00:11]} Ke4 {[%emt 0:00:17]} 71. Qf5+ {[%emt 0:00:18]} Kd4 {[%emt 0:00:14]} 72. Rd8+ {[%emt 0:00:13]} Ke3 {[%emt 0:00:25]} 73. Rd3+ {[%emt 0:00:08]} Ke2 {[%emt 0:00:14]} 74. Qf3+ {[%emt 0:00:09]} Ke1 {[%emt 0:00:06]} 75. Rd1# {[%emt 0:00:04]} 1-0

[Event "EYTCC U12 Girls 2019"]
[Site "Pardubice"]
[Date "2019.07.11"]
[Round "1.29"]
[White "Pribylova, Sofie"]
[Black "Muetsch, Annmarie"]
[Result "0-1"]
[ECO "B31"]
[WhiteElo "2093"]
[BlackElo "2266"]
[Annotator "NA"]
[PlyCount "64"]
[EventDate "2019.07.11"]
[EventType "swiss"]
[EventCountry "CZE"]
[SourceTitle "playchess.com"]
[Source "ChessBase"]
[SourceQuality "1"]
[WhiteTeam "Czech Republic"]
[BlackTeam "Germany"]
[WhiteTeamCountry "CZE"]
[BlackTeamCountry "GER"]
[TimeControl "40/5400+30:1800+30"]

1. e4 {[%emt 0:00:00]} c5 {[%emt 0:00:00]} 2. Nf3 {[%emt 0:00:00]} Nc6 {[%emt 0:00:00]} 3. Bb5 {[%emt 0:00:03]} g6 {[%emt 0:00:00]} 4. Bxc6 {[%emt 0:00:27]} dxc6 {[%emt 0:00:05]} 5. d3 {[%emt 0:00:38]} Bg7 {[%emt 0:00:12]} 6. h3 {[%emt 0:00:39]} Qc7 {[%emt 0:00:12]} 7. Nc3 {[%emt 0:00:50]} e5 {[%emt 0:00:18]} 8. Be3 {[%emt 0:01:29]} b6 {[%emt 0:00:10]} 9. Qd2 {[%emt 0:05:42]} Ne7 {[%emt 0:03:57]} 10. g4 {[%emt 0:03:28]} h5 {[%emt 0:08:32]} 11. Rg1 {[%emt 0:07:12]} hxg4 {[%emt 0:04:09]} 12. hxg4 {[%emt 0:00:06]} f6 {[%emt 0:07:08]} 13. O-O-O {[%emt 0:22:15]} g5 {[%emt 0:00:35]} 14. Qe2 {[%emt 0:02:43]} Be6 {[%emt 0:05:21]} 15. Nd2 {[%emt 0:02:18]} Rh4 {[%emt 0:05:37]} 16. f3 {[%emt 0:01:27]} O-O-O {[%emt 0:03:23]} 17. Rh1 {[%emt 0:05:36]} Rdh8 {[%emt 0:04:40]} 18. Qg2 {[%emt 0:04:50]} Ng6 {[%emt 0:03:19]} 19. Ne2 {[%emt 0:04:43]} Bf8 {[%emt 0:05:56]} 20. Ng3 {[%emt 0:02:42]} Qf7 {[%emt 0:06:14]} 21. a4 {[%emt 0:03:28]} Qb7 {[%emt 0:05:03]} 22. Qf2 {[%emt 0:01:27]} Qa6 {[%emt 0:12:20]} 23. b3 {[%emt 0:02:02]} b5 {[%emt 0:00:27]} 24. Bxc5 {[%emt 0:17:20]} bxa4 {[%emt 0:00:08]} 25. b4 {[%emt 0:01:42]} Nf4 {[%emt 0:06:55]} 26. Bxf8 {[%emt 0:02:53]} Rxf8 {[%emt 0:00:05]} 27. Rxh4 {[%emt 0:01:28]} gxh4 {[%emt 0:00:06]} 28. Nh5 {[%emt 0:00:07]} Nxd3+ {[%emt 0:10:56]} 29. cxd3 {[%emt 0:00:04]} Qxd3 {[%emt 0:00:07]} 30. Nb1 {[%emt 0:01:54]} Qc4+ {[%emt 0:00:15]} 31. Kb2 {[%emt 0:01:30]} Qa2+ {[%emt 0:00:07]} 32. Kc3 {[%emt 0:00:49]} Qxf2 {[%emt 0:00:12] Kd4} 0-1

[Event "EYTCC U12 Girls 2019"]
[Site "Pardubice"]
[Date "2019.07.11"]
[Round "1.31"]
[White "Lehaci, Miruna-Daria"]
[Black "Ferkova, Dominika"]
[Result "1-0"]
[ECO "B12"]
[WhiteElo "2201"]
[BlackElo "2009"]
[Annotator "NA"]
[PlyCount "59"]
[EventDate "2019.07.11"]
[EventType "swiss"]
[EventCountry "CZE"]
[SourceTitle "playchess.com"]
[Source "ChessBase"]
[SourceQuality "1"]
[WhiteTeam "Romania"]
[BlackTeam "Slovakia"]
[WhiteTeamCountry "ROU"]
[BlackTeamCountry "SVK"]
[TimeControl "40/5400+30:1800+30"]

1. e4 {[%emt 0:00:00]} c6 {[%emt 0:00:00]} 2. d4 {[%emt 0:00:00]} d5 {[%emt 0:00:00]} 3. e5 {[%emt 0:00:00]} Bf5 {[%emt 0:00:00]} 4. Nf3 {[%emt 0:00:00]} e6 {[%emt 0:00:00]} 5. Be2 {[%emt 0:00:00]} c5 {[%emt 0:00:04]} 6. O-O {[%emt 0:00:00]} Nc6 {[%emt 0:00:31]} 7. c3 {[%emt 0:00:00]} Bg6 {[%emt 0:01:29]} 8. a3 {[%emt 0:11:57]} cxd4 {[%emt 0:17:39]} 9. cxd4 {[%emt 0:00:17]} Nge7 {[%emt 0:02:14]} 10. Nc3 {[%emt 0:06:33]} Nf5 {[%emt 0:05:16]} 11. b4 {[%emt 0:03:12]} Be7 {[%emt 0:08:12]} 12. Bb2 {[%emt 0:09:05]} O-O {[%emt 0:02:43]} 13. Na4 {[%emt 0:05:30]} a5 {[%emt 0:37:31]} 14. b5 {[%emt 0:01:31]} Nb8 {[%emt 0:04:50]} 15. Rc1 {[%emt 0:03:08]} Nd7 {[%emt 0:01:08]} 16. Qd2 {[%emt 0:03:14]} Rc8 {[%emt 0:10:28]} 17. Rxc8 {[%emt 0:03:25]} Qxc8 {[%emt 0:00:02]} 18. b6 {[%emt 0:04:00]} Qa8 {[%emt 0:04:04]} 19. Bb5 {[%emt 0:03:42]} Nb8 {[%emt 0:01:05]} 20. Rc1 {[%emt 0:01:41]} Nc6 {[%emt 0:01:04]} 21. Bxc6 {[%emt 0:02:03]} bxc6 {[%emt 0:00:02]} 22. Qc3 {[%emt 0:02:44]} Rc8 {[%emt 0:01:02]} 23. Nd2 {[%emt 0:00:47]} Qa6 {[%emt 0:00:49]} 24. Nb3 {[%emt 0:09:49]} Qb5 {[%emt 0:00:45]} 25. Nxa5 {[%emt 0:01:55]} Qxa4 {[%emt 0:01:00]} 26. b7 {[%emt 0:00:03]} Rb8 {[%emt 0:00:25]} 27. Qxc6 {[%emt 0:00:14]} Qxa5 {[%emt 0:00:19]} 28. Qc8+ {[%emt 0:00:08]} Qd8 {[%emt 0:00:39]} 29. Qxb8 {[%emt 0:00:16]} Qxb8 {[%emt 0:00:05]} 30. Rc8+ {[%emt 0:00:04]} 1-0

[Event "EYTCC U12 Girls 2019"]
[Site "Pardubice"]
[Date "2019.07.11"]
[Round "1.33"]
[White "Kopcova, Ludmila"]
[Black "Sliwicka, Alicja"]
[Result "0-1"]
[ECO "A53"]
[WhiteElo "1980"]
[BlackElo "2261"]
[Annotator "NA"]
[PlyCount "48"]
[EventDate "2019.07.11"]
[EventType "swiss"]
[EventCountry "CZE"]
[SourceTitle "playchess.com"]
[Source "ChessBase"]
[SourceQuality "1"]
[WhiteTeam "Czech Republic"]
[BlackTeam "Poland"]
[WhiteTeamCountry "CZE"]
[BlackTeamCountry "POL"]
[TimeControl "40/5400+30:1800+30"]

1. d4 {[%emt 0:00:00]} Nf6 {[%emt 0:00:00]} 2. c4 {[%emt 0:00:00]} d6 {[%emt 0:00:00]} 3. Nc3 {[%emt 0:00:00]} Nbd7 {[%emt 0:00:00]} 4. e4 {[%emt 0:00:00]} e5 {[%emt 0:00:03]} 5. Be3 {[%emt 0:00:29]} g6 {[%emt 0:05:52]} 6. f3 {[%emt 0:00:47]} exd4 {[%emt 0:08:20]} 7. Qxd4 {[%emt 0:03:03]} Bg7 {[%emt 0:02:25]} 8. O-O-O {[%emt 0:05:42]} O-O {[%emt 0:01:11]} 9. Qd2 {[%emt 0:00:18]} Ne5 {[%emt 0:04:36]} 10. g4 {[%emt 0:04:09]} Be6 {[%emt 0:03:40]} 11. b3 {[%emt 0:05:43]} a5 {[%emt 0:02:58]} 12. h4 {[%emt 0:01:27]} a4 {[%emt 0:06:10]} 13. h5 {[%emt 0:06:38]} axb3 {[%emt 0:01:16]} 14. axb3 {[%emt 0:00:09]} c6 {[%emt 0:10:16]} 15. hxg6 {[%emt 0:09:59]} fxg6 {[%emt 0:08:08]} 16. Qxd6 {[%emt 0:09:47]} Qxd6 {[%emt 0:03:33]} 17. Rxd6 {[%emt 0:00:12]} Bxg4 {[%emt 0:00:36]} 18. f4 {[%emt 0:11:25]} Nf7 {[%emt 0:03:15]} 19. Rd2 {[%emt 0:06:37]} Ra1+ {[%emt 0:00:41]} 20. Nb1 {[%emt 0:02:16]} Nxe4 {[%emt 0:00:51]} 21. Rdh2 {[%emt 0:01:47]} Nc3 {[%emt 0:05:42]} 22. Bd3 {[%emt 0:03:16]} Rd8 {[%emt 0:00:47]} 23. Rd2 {[%emt 0:02:59]} Na2+ {[%emt 0:01:56]} 24. Kc2 {[%emt 0:00:39]} Nb4+ {[%emt 0:00:12]} 0-1

[Event "EYTCC U12 Girls 2019"]
[Site "Pardubice"]
[Date "2019.07.11"]
[Round "1.42"]
[White "Zeliantsova, Kseniya"]
[Black "Beliakova, Ilona"]
[Result "1-0"]
[ECO "C43"]
[WhiteElo "1907"]
[BlackElo "1759"]
[Annotator "NA"]
[PlyCount "45"]
[EventDate "2019.07.11"]
[EventType "swiss"]
[EventCountry "CZE"]
[SourceTitle "playchess.com"]
[Source "ChessBase"]
[SourceQuality "1"]
[WhiteTeam "Belarus"]
[BlackTeam "Russia"]
[WhiteTeamCountry "BLR"]
[BlackTeamCountry "RUS"]
[TimeControl "40/5400+30:1800+30"]

1. e4 {[%emt 0:00:00]} e5 {[%emt 0:00:00]} 2. Nf3 {[%emt 0:00:00]} Nf6 {[%emt 0:00:00]} 3. d4 {[%emt 0:00:00]} Nxe4 {[%emt 0:01:33]} 4. Bd3 {[%emt 0:00:09]} d5 {[%emt 0:03:04]} 5. Nxe5 {[%emt 0:00:13]} Bd6 {[%emt 0:23:06]} 6. O-O {[%emt 0:00:50]} O-O {[%emt 0:01:02]} 7. c4 {[%emt 0:02:05]} f6 {[%emt 0:06:48]} 8. Nf3 {[%emt 0:14:00]} Bg4 {[%emt 0:11:11]} 9. c5 {[%emt 0:02:51]} Be7 {[%emt 0:02:35]} 10. Bxe4 {[%emt 0:02:56]} dxe4 {[%emt 0:02:42]} 11. Qb3+ {[%emt 0:00:12]} Kh8 {[%emt 0:01:57]} 12. Qxb7 {[%emt 0:01:58]} exf3 {[%emt 0:20:59]} 13. Qxa8 {[%emt 0:01:53]} c6 {[%emt 0:01:53]} 14. Qxa7 {[%emt 0:03:20]} fxg2 {[%emt 0:01:45]} 15. Re1 {[%emt 0:00:08]} Re8 {[%emt 0:01:02]} 16. Bd2 {[%emt 0:05:48]} f5 {[%emt 0:02:04]} 17. Ba5 {[%emt 0:03:36]} Qxd4 {[%emt 0:04:53]} 18. Rxe7 {[%emt 0:01:39]} Qd1+ {[%emt 0:01:11]} 19. Be1 {[%emt 0:00:05]} Rg8 {[%emt 0:01:09]} 20. Qa5 {[%emt 0:03:13]} Nd7 {[%emt 0:06:12]} 21. Qd2 {[%emt 0:00:40]} Nxc5 {[%emt 0:00:36]} 22. Qxd1 {[%emt 0:00:07]} Bxd1 {[%emt 0:00:07]} 23. Kxg2 {[%emt 0:00:36]} 1-0

[Event "EYTCC U12 Girls 2019"]
[Site "Pardubice"]
[Date "2019.07.12"]
[Round "2.17"]
[White "Mellor, Jessica"]
[Black "Buyuk, Ecrin Efsa"]
[Result "1-0"]
[ECO "B19"]
[WhiteElo "1663"]
[BlackElo "1592"]
[Annotator "NA"]
[PlyCount "111"]
[EventDate "2019.07.11"]
[EventType "swiss"]
[EventCountry "CZE"]
[SourceTitle "playchess.com"]
[Source "ChessBase"]
[SourceQuality "1"]
[WhiteTeam "England"]
[BlackTeam "Turkey"]
[WhiteTeamCountry "ENG"]
[BlackTeamCountry "TUR"]
[TimeControl "40/5400+30:1800+30"]

1. e4 {[%emt 0:00:00]} c6 {[%emt 0:00:00]} 2. d4 {[%emt 0:00:00]} d5 {[%emt 0:00:00]} 3. Nc3 {[%emt 0:00:00]} dxe4 {[%emt 0:00:00]} 4. Nxe4 {[%emt 0:00:11]} Bf5 {[%emt 0:00:10]} 5. Ng3 {[%emt 0:00:17]} Bg6 {[%emt 0:00:07]} 6. h4 {[%emt 0:00:38]} h6 {[%emt 0:00:14]} 7. Nf3 {[%emt 0:00:23]} Nd7 {[%emt 0:00:16]} 8. h5 {[%emt 0:01:14]} Bh7 {[%emt 0:00:13]} 9. Bd3 {[%emt 0:00:55]} Bxd3 {[%emt 0:00:13]} 10. Qxd3 {[%emt 0:00:18]} e6 {[%emt 0:00:12]} 11. Bf4 {[%emt 0:02:34]} Qa5+ {[%emt 0:00:56]} 12. Bd2 {[%emt 0:00:34]} Bb4 {[%emt 0:00:24]} 13. c3 {[%emt 0:00:41]} Be7 {[%emt 0:00:19]} 14. c4 {[%emt 0:03:22]} Qc7 {[%emt 0:01:02]} 15. O-O-O {[%emt 0:03:04]} Ngf6 {[%emt 0:01:41]} 16. Kb1 {[%emt 0:09:16]} O-O {[%emt 0:03:20]} 17. Ne4 {[%emt 0:19:46]} Rad8 {[%emt 0:03:52]} 18. Bc3 {[%emt 0:07:38]} Qf4 {[%emt 0:05:35]} 19. Rh4 {[%emt 0:09:15]} Qf5 {[%emt 0:08:35]} 20. Nxf6+ {[%emt 0:08:48]} Nxf6 {[%emt 0:02:19]} 21. Qxf5 {[%emt 0:01:00]} exf5 {[%emt 0:00:10]} 22. Rf4 {[%emt 0:07:07]} g6 {[%emt 0:08:30]} 23. hxg6 {[%emt 0:02:07]} fxg6 {[%emt 0:00:08]} 24. Ne5 {[%emt 0:02:33]} Bd6 {[%emt 0:04:13]} 25. Re1 {[%emt 0:02:56]} Ne4 {[%emt 0:06:24]} 26. Rf3 {[%emt 0:02:40]} Rfe8 {[%emt 0:04:50]} 27. Nd3 {[%emt 0:07:04]} Re7 {[%emt 0:04:16]} 28. Rfe3 {[%emt 0:01:10]} Rde8 {[%emt 0:00:24]} 29. Kc2 {[%emt 0:01:13]} Kf7 {[%emt 0:11:19]} 30. f3 {[%emt 0:02:24]} Nxc3 {[%emt 0:00:17]} 31. Rxe7+ {[%emt 0:00:10]} Rxe7 {[%emt 0:00:04]} 32. Rxe7+ {[%emt 0:00:11]} Kxe7 {[%emt 0:00:27]} 33. Kxc3 {[%emt 0:00:15]} Ke6 {[%emt 0:00:26]} 34. b4 {[%emt 0:01:02]} h5 {[%emt 0:04:03]} 35. a4 {[%emt 0:00:59]} a6 {[%emt 0:03:59]} 36. Nc5+ {[%emt 0:03:32]} Bxc5 {[%emt 0:01:40]} 37. bxc5 {[%emt 0:00:22]} a5 {[%emt 0:09:54]} 38. f4 {[%emt 0:00:49]} Kf6 {[%emt 0:01:22]} 39. Kd3 {[%emt 0:00:59]} Ke6 {[%emt 0:08:29]} 40. g3 {[%emt 0:01:05]} Kf6 {[%emt 0:03:59]} 41. Ke3 {[%emt 0:31:25]} Ke6 {[%emt 0:30:44]} 42. Kd3 {[%emt 0:00:00]} Kd7 {[%emt 0:00:00]} 43. d5 {[%emt 0:00:00]} Ke7 {[%emt 0:00:00]} 44. Ke3 {[%emt 0:00:00]} Kf7 {[%emt 0:00:00]} 45. d6 {[%emt 0:00:00]} Kf6 {[%emt 0:00:00]} 46. Kf3 {[%emt 0:00:00]} Ke6 {[%emt 0:00:00]} 47. Kg2 {[%emt 0:00:00]} Kf6 {[%emt 0:00:00]} 48. Kh3 {[%emt 0:00:00]} Ke6 {[%emt 0:00:00]} 49. Kh4 {[%emt 0:00:00]} Kf6 {[%emt 0:00:00]} 50. d7 {[%emt 0:00:00]} Ke7 {[%emt 0:00:00]} 51. Kg5 {[%emt 0:00:00]} Kxd7 {[%emt 0:00:00]} 52. Kxg6 {[%emt 0:00:00]} Ke6 {[%emt 0:00:00]} 53. Kxh5 {[%emt 0:00:00]} Kf6 {[%emt 0:00:00]} 54. Kh6 {[%emt 0:00:00]} Kf7 {[%emt 0:00:00]} 55. Kg5 {[%emt 0:00:00]} Ke6 {[%emt 0:00:00]} 56. Kg6 {[%emt 0:00:00] Kd5} 1-0

[Event "EYTCC U12 Girls 2019"]
[Site "Pardubice"]
[Date "2019.07.12"]
[Round "2.18"]
[White "Alagoz, Zumra Meryem"]
[Black "Solovieva, Kristina"]
[Result "1-0"]
[ECO "B22"]
[WhiteElo "1310"]
[BlackElo "1469"]
[Annotator "NA"]
[PlyCount "101"]
[EventDate "2019.07.11"]
[EventType "swiss"]
[EventCountry "CZE"]
[SourceTitle "playchess.com"]
[Source "ChessBase"]
[SourceQuality "1"]
[WhiteTeam "Turkey"]
[BlackTeam "England"]
[WhiteTeamCountry "TUR"]
[BlackTeamCountry "ENG"]
[TimeControl "40/5400+30:1800+30"]

1. e4 {[%emt 0:00:00]} c5 {[%emt 0:00:00]} 2. c3 {[%emt 0:00:00]} e6 {[%emt 0:00:00]} 3. d4 {[%emt 0:00:00]} cxd4 {[%emt 0:00:00]} 4. cxd4 {[%emt 0:00:00]} d5 {[%emt 0:00:00]} 5. exd5 {[%emt 0:01:38]} exd5 {[%emt 0:00:00]} 6. Nf3 {[%emt 0:01:31]} Nc6 {[%emt 0:00:13]} 7. Nc3 {[%emt 0:02:26]} Nf6 {[%emt 0:00:04]} 8. Be2 {[%emt 0:04:40]} Be7 {[%emt 0:00:27]} 9. Bg5 {[%emt 0:02:34]} Be6 {[%emt 0:00:17]} 10. O-O {[%emt 0:02:40]} O-O {[%emt 0:00:05]} 11. Rc1 {[%emt 0:01:29]} h6 {[%emt 0:03:15]} 12. Bf4 {[%emt 0:02:20]} a6 {[%emt 0:08:02]} 13. Na4 {[%emt 0:05:33]} Nd7 {[%emt 0:03:04]} 14. Ne5 {[%emt 0:08:46]} Ndxe5 {[%emt 0:06:26]} 15. Bxe5 {[%emt 0:01:15]} Nxe5 {[%emt 0:01:16]} 16. dxe5 {[%emt 0:00:06]} b5 {[%emt 0:00:58]} 17. Nc5 {[%emt 0:02:01]} Bxc5 {[%emt 0:01:42]} 18. Rxc5 {[%emt 0:00:10]} Qd7 {[%emt 0:01:24]} 19. Bf3 {[%emt 0:01:44]} Rfd8 {[%emt 0:00:50]} 20. Qd2 {[%emt 0:05:24]} Rac8 {[%emt 0:02:10]} 21. Rfc1 {[%emt 0:01:06]} Rxc5 {[%emt 0:06:30]} 22. Rxc5 {[%emt 0:00:08]} Rc8 {[%emt 0:01:25]} 23. Rxc8+ {[%emt 0:05:16]} Qxc8 {[%emt 0:00:09]} 24. h3 {[%emt 0:01:39]} Qc5 {[%emt 0:04:09]} 25. b4 {[%emt 0:07:00]} Qc4 {[%emt 0:00:41]} 26. Bd1 {[%emt 0:02:20]} Qe4 {[%emt 0:02:28]} 27. f4 {[%emt 0:02:19]} Bf5 {[%emt 0:15:20]} 28. Kf2 {[%emt 0:06:55]} Be6 {[%emt 0:12:48]} 29. Bc2 {[%emt 0:05:13]} Qc4 {[%emt 0:02:13]} 30. Bd3 {[%emt 0:01:19]} Qc6 {[%emt 0:02:45]} 31. f5 {[%emt 0:01:53]} Bd7 {[%emt 0:00:37]} 32. Qe3 {[%emt 0:04:58]} Qc3 {[%emt 0:04:26]} 33. f6 {[%emt 0:05:18]} d4 {[%emt 0:06:39]} 34. Qe4 {[%emt 0:01:09]} Qd2+ {[%emt 0:01:18]} 35. Kg1 {[%emt 0:00:36]} Qe3+ {[%emt 0:02:44]} 36. Qxe3 {[%emt 0:00:06]} dxe3 {[%emt 0:00:04]} 37. Kf1 {[%emt 0:00:41]} gxf6 {[%emt 0:00:31]} 38. exf6 {[%emt 0:00:11]} Bc6 {[%emt 0:00:32]} 39. h4 {[%emt 0:02:39]} Kf8 {[%emt 0:01:22]} 40. Ke2 {[%emt 0:00:26]} Bxg2 {[%emt 0:00:33]} 41. Kxe3 {[%emt 0:30:06]} Ke8 {[%emt 0:31:17]} 42. Be4 {[%emt 0:00:48]} Bf1 {[%emt 0:01:25]} 43. Bc6+ {[%emt 0:00:58]} Kd8 {[%emt 0:00:03]} 44. Kd4 {[%emt 0:00:12]} Kc7 {[%emt 0:00:45]} 45. Bd5 {[%emt 0:00:09]} Bc4 {[%emt 0:01:01]} 46. Bxc4 {[%emt 0:00:06]} bxc4 {[%emt 0:00:05]} 47. Kxc4 {[%emt 0:00:04]} Kc6 {[%emt 0:00:47]} 48. a4 {[%emt 0:00:26]} Kb6 {[%emt 0:00:42]} 49. Kd5 {[%emt 0:00:10]} Kc7 {[%emt 0:00:08]} 50. b5 {[%emt 0:00:18]} axb5 {[%emt 0:00:14]} 51. axb5 {[%emt 0:00:04]} 1-0

[Event "EYTCC U12 Girls 2019"]
[Site "Pardubice"]
[Date "2019.07.12"]
[Round "2.19"]
[White "Havelkova, Beata"]
[Black "Mikheeva, Galina"]
[Result "1/2-1/2"]
[ECO "C61"]
[WhiteElo "1316"]
[BlackElo "1792"]
[Annotator "NA"]
[PlyCount "103"]
[EventDate "2019.07.11"]
[EventType "swiss"]
[EventCountry "CZE"]
[SourceTitle "playchess.com"]
[Source "ChessBase"]
[SourceQuality "1"]
[WhiteTeam "Czech Republic"]
[BlackTeam "Russia"]
[WhiteTeamCountry "CZE"]
[BlackTeamCountry "RUS"]
[TimeControl "40/5400+30:1800+30"]

1. e4 {[%emt 0:00:00]} e5 {[%emt 0:00:00]} 2. Nf3 {[%emt 0:00:00]} Nc6 {[%emt 0:00:00]} 3. Bb5 {[%emt 0:00:00]} Nd4 {[%emt 0:00:05]} 4. Nxd4 {[%emt 0:00:12]} exd4 {[%emt 0:00:05]} 5. O-O {[%emt 0:01:01]} Bc5 {[%emt 0:00:07]} 6. Bc4 {[%emt 0:00:29]} Qh4 {[%emt 0:00:09]} 7. Qf3 {[%emt 0:04:42]} Nh6 {[%emt 0:00:35]} 8. d3 {[%emt 0:01:52]} O-O {[%emt 0:00:33]} 9. Qf4 {[%emt 0:05:41]} Qxf4 {[%emt 0:36:40]} 10. Bxf4 {[%emt 0:00:41]} c6 {[%emt 0:00:13]} 11. Nd2 {[%emt 0:02:35]} b5 {[%emt 0:03:47]} 12. Bb3 {[%emt 0:01:01]} d6 {[%emt 0:06:32]} 13. h3 {[%emt 0:02:39]} Re8 {[%emt 0:03:44]} 14. a4 {[%emt 0:05:38]} Ba6 {[%emt 0:03:53]} 15. Rfb1 {[%emt 0:12:28]} Red8 {[%emt 0:09:36]} 16. g4 {[%emt 0:05:46]} Kf8 {[%emt 0:00:57]} 17. Nf3 {[%emt 0:04:13]} f6 {[%emt 0:03:54]} 18. g5 {[%emt 0:02:36]} Nf7 {[%emt 0:04:17]} 19. Bxf7 {[%emt 0:02:25]} Kxf7 {[%emt 0:00:24]} 20. b4 {[%emt 0:00:12]} Bb6 {[%emt 0:00:56]} 21. a5 {[%emt 0:00:17]} Bc7 {[%emt 0:00:08]} 22. Nxd4 {[%emt 0:00:18]} c5 {[%emt 0:03:08]} 23. Nf5 {[%emt 0:06:51]} Rac8 {[%emt 0:01:19]} 24. c3 {[%emt 0:03:01]} d5 {[%emt 0:02:25]} 25. Bxc7 {[%emt 0:01:13]} Rxc7 {[%emt 0:00:03]} 26. gxf6 {[%emt 0:01:05]} gxf6 {[%emt 0:03:00]} 27. Ne3 {[%emt 0:00:08]} dxe4 {[%emt 0:00:53]} 28. dxe4 {[%emt 0:00:27]} cxb4 {[%emt 0:01:53]} 29. Nd5 {[%emt 0:04:01]} Rc5 {[%emt 0:04:01]} 30. cxb4 {[%emt 0:01:06]} Rc4 {[%emt 0:00:38]} 31. Rc1 {[%emt 0:04:46]} Rxe4 {[%emt 0:03:37]} 32. Rc7+ {[%emt 0:00:20]} Ke6 {[%emt 0:03:25]} 33. Rxa7 {[%emt 0:00:56]} Rxd5 {[%emt 0:01:25]} 34. Rxa6+ {[%emt 0:00:18]} Kf5 {[%emt 0:00:42]} 35. Rb1 {[%emt 0:02:14]} Rdd4 {[%emt 0:00:39]} 36. Rb6 {[%emt 0:00:42]} Rxb4 {[%emt 0:00:08]} 37. Rxb5+ {[%emt 0:00:21]} Rxb5 {[%emt 0:00:26]} 38. Rxb5+ {[%emt 0:00:10]} Kf4 {[%emt 0:00:49]} 39. a6 {[%emt 0:01:07]} Ra4 {[%emt 0:00:10]} 40. Rb6 {[%emt 0:00:11]} f5 {[%emt 0:00:15]} 41. Kg2 {[%emt 0:30:50]} h5 {[%emt 0:30:29]} 42. Re6 {[%emt 0:01:51]} Ra5 {[%emt 0:00:49]} 43. Kf1 {[%emt 0:05:05]} Kf3 {[%emt 0:00:17]} 44. Ke1 {[%emt 0:01:26]} f4 {[%emt 0:01:22]} 45. Rf6 {[%emt 0:00:53]} Ra4 {[%emt 0:00:37]} 46. h4 {[%emt 0:04:01]} Ra2 {[%emt 0:00:39]} 47. Rh6 {[%emt 0:02:13]} Rxf2 {[%emt 0:02:07]} 48. Rxh5 {[%emt 0:00:34]} Ra2 {[%emt 0:00:06]} 49. Rh6 {[%emt 0:00:47]} Kg4 {[%emt 0:01:47]} 50. Kf1 {[%emt 0:05:12]} Kf3 {[%emt 0:00:32]} 51. Ke1 {[%emt 0:01:05]} Kg4 {[%emt 0:00:00]} 52. Kf1 1/2-1/2